fUST/lending_fUST_20250921
["ID","MTS","AMOUNT","RATE_DAILY","PERIOD"]
[386552625,1758384009566,-1229.54032172,0.00020628,2]
[386552626,1758384009696,-7540.92935656,0.00020628,2]
[386552628,1758384057319,-173.02941,0.000206,2]
[386552629,1758384061409,-211.12955123,0.000206,2]
[386552630,1758384076624,198.55,0.00019223,2]
[386552631,1758384077219,397.1,0.00020138,2]
[386552632,1758384084582,204.39193663,0.00020526,2]
[386552643,1758384108058,2110.80638483,0.000199,2]
[386552644,1758384116602,7089.16167854,0.00020528,2]
[386552645,1758384116702,10000.01,0.00020528,2]
[386552646,1758384116807,10000.01,0.00020528,2]
[386552647,1758384116909,10000.01,0.00020528,2]
[386552648,1758384117011,10000.01,0.00020528,2]
[386552649,1758384117108,10000.01,0.00020528,2]
[386552650,1758384117199,10000.01,0.00020528,2]
[386552651,1758384117289,10000.01,0.00020528,2]
[386552652,1758384117372,10000.01,0.00020528,2]
[386552653,1758384117461,10000.01,0.00020528,2]
[386552654,1758384117500,118.79093624,0.00020528,2]
[386552655,1758384117547,272791.95738522,0.00020528,2]
[386552656,1758384150719,212.40021952,0.0002,2]
[386552658,1758384164641,202.6,0.00019224,2]
[386552659,1758384165257,405.2,0.00020139,2]
[386552660,1758384186908,6138.4326475,0.0001967,2]
[386552661,1758384189048,2280.0522408,0.0001967,2]
[386552662,1758384198720,158.0,8e-07,2]
[386552663,1758384199789,158.0,8e-07,2]
[386552664,1758384200839,158.0,8e-07,2]
[386552665,1758384201915,158.0,8e-07,2]
[386552666,1758384203201,129.32489218,8e-07,2]
[386552667,1758384203286,28.67510782,8e-07,2]
[386552668,1758384204154,158.0,8e-07,2]
[386552669,1758384252805,194.87,0.00019221,2]
[386552670,1758384253438,389.73,0.00020136,2]
[386552671,1758384274758,2462.4620679,0.00019649,2]
[386552672,1758384279954,-115.84103877,0.000206,2]
[386552673,1758384280054,-532.48299361,0.00020615,2]
[386552674,1758384293622,-1742.26,0.0002061,10]
[386552675,1758384293939,-2016.22771258,0.0002062,2]
[386552676,1758384294188,-10000.01,0.0002062,2]
[386552677,1758384294442,-10000.01,0.0002062,2]
[386552678,1758384294861,-10000.01,0.0002062,2]
[386552679,1758384295093,-10000.01,0.0002062,2]
[386552680,1758384295374,-10000.01,0.0002062,2]
[386552681,1758384295615,-10000.01,0.0002062,2]
[386552682,1758384296521,2162.18445538,0.000199,2]
[386552683,1758384297767,-10000.01,0.0002062,2]
[386552684,1758384298023,-10000.01,0.0002062,2]
[386552685,1758384305144,-300.0,0.00020619,2]
[386552686,1758384305279,-300.0,0.00020619,2]
[386552687,1758384305404,-300.0,0.00020619,2]
[386552688,1758384305947,-8200.01,0.0002062,2]
[386552689,1758384306081,-233.0,0.00020619,2]
[386552690,1758384306216,-9767.01,0.0002062,2]
[386552691,1758384306339,-233.0,0.0002062,2]
[386552692,1758384306462,-9534.01,0.0002062,2]
[386552693,1758384306650,-10000.01,0.0002062,2]
[386552694,1758384306765,-10000.01,0.0002062,2]
[386552695,1758384306915,-10000.01,0.0002062,2]
[386552696,1758384307265,-10000.01,0.0002062,2]
[386552697,1758384307583,-10000.01,0.0002062,2]
[386552698,1758384307920,-10000.01,0.0002062,2]
[386552699,1758384308692,-1999.93,0.0002061,10]
[386552700,1758384308887,-6000.15,0.0002062,2]
[386552710,1758384340967,187.43,0.0001947,2]
[386552711,1758384341678,374.85,0.00020397,2]
[386552714,1758384365273,-1666.61,0.0002061,10]
[386552715,1758384365397,-1200.0,0.00020619,2]
[386552716,1758384365508,-300.0,0.00020619,2]
[386552717,1758384365983,-3666.79,0.0002062,2]
[386552718,1758384366125,-10000.01,0.0002062,2]
[386552719,1758384366250,-10000.01,0.0002062,2]
[386552720,1758384366374,-10000.01,0.0002062,2]
[386552721,1758384366652,-10000.01,0.0002062,2]
[386552722,1758384366969,-10000.01,0.0002062,2]
[386552723,1758384367415,-10000.01,0.0002062,2]
[386552724,1758384367632,-10000.01,0.0002062,2]
[386552725,1758384367943,-10000.01,0.0002062,2]
[386552726,1758384368284,-1388.84,0.0002061,10]
[386552727,1758384368515,-7222.33,0.0002062,2]
[386552729,1758384412880,12148.7074274,0.00019625,2]
[386552730,1758384425203,-1157.37,0.0002061,10]
[386552731,1758384425324,-964.47,0.0002061,10]
[386552732,1758384425432,-1788.67420772,0.00020615,2]
[386552733,1758384425550,-244.55276687,0.00020619,2]
[386552734,1758384425667,-300.0,0.00020619,2]
[386552735,1758384426433,-1089.87605082,0.0002062,2]
[386552736,1758384426793,-10000.01,0.0002062,2]
[386552737,1758384426932,-10000.01,0.0002062,2]
[386552738,1758384427033,-10000.01,0.0002062,2]
[386552739,1758384427130,-10000.01,0.0002062,2]
[386552740,1758384427332,-10000.01,0.0002062,2]
[386552741,1758384427605,-10000.01,0.0002062,2]
[386552742,1758384427900,-10000.01,0.0002062,2]
[386552743,1758384428187,-10000.01,0.0002062,2]
[386552744,1758384428501,-10000.01,0.0002062,2]
[386552745,1758384429094,-1859.49938481,0.0002062,2]
[386552746,1758384432387,465.9226194,0.00020526,2]
[386552747,1758384433149,204.55591,0.00019688,2]
[386552748,1758384438061,180.27,0.00019442,2]
[386552749,1758384438636,360.54,0.00020368,2]
[386552751,1758384479730,2199.67609539,0.000199,2]
[386552752,1758384526027,202.79,0.00019245,2]
[386552753,1758384526629,405.59,0.00020161,2]
[386552754,1758384614951,195.05,0.00019249,2]
[386552755,1758384615572,390.1,0.00020165,2]
[386552756,1758384622650,496.76775076,0.00020519,2]
[386552764,1758384632170,-300.0,0.00020618,2]
[386552765,1758384632181,-300.0,0.00020618,2]
[386552766,1758384632191,-300.0,0.00020618,2]
[386552767,1758384632202,-300.0,0.00020618,2]
[386552768,1758384632214,-300.0,0.00020618,2]
[386552769,1758384632223,-1200.0,0.00020618,2]
[386552770,1758384632233,-500.0,0.00020619,2]
[386552771,1758384632243,-417.15472785,0.00020619,2]
[386552772,1758384632254,-1200.0,0.00020619,2]
[386552773,1758384632263,-480.0,0.00020619,2]
[386552774,1758384632273,-480.0,0.00020619,2]
[386552775,1758384632282,-679.06,0.00020619,2]
[386552776,1758384632292,-380.88670788,0.00020619,2]
[386552777,1758384632301,-480.0,0.00020619,2]
[386552778,1758384632311,-500.0,0.00020619,2]
[386552779,1758384632320,-500.0,0.00020619,2]
[386552780,1758384632330,-500.0,0.00020619,2]
[386552781,1758384632340,-500.0,0.00020619,2]
[386552782,1758384632350,-500.0,0.00020619,2]
[386552783,1758384632360,-500.0,0.00020619,2]
[386552786,1758384632370,-500.0,0.00020619,2]
[386552789,1758384632380,-306.76416209,0.00020619,2]
[386552792,1758384632389,-500.0,0.00020619,2]
[386552794,1758384632399,-500.0,0.00020619,2]
[386552796,1758384632408,-500.0,0.00020619,2]
[386552798,1758384632418,-500.0,0.00020619,2]
[386552800,1758384632430,-500.0,0.00020619,2]
[386552802,1758384632440,-500.0,0.00020619,2]
[386552804,1758384632450,-500.0,0.00020619,2]
[386552806,1758384632461,-500.0,0.00020619,2]
[386552808,1758384632471,-500.0,0.00020619,2]
[386552810,1758384632481,-500.0,0.00020619,2]
[386552812,1758384632490,-500.0,0.00020619,2]
[386552814,1758384632499,-500.0,0.00020619,2]
[386552816,1758384632509,-500.0,0.00020619,2]
[386552818,1758384632518,-174.96322451,0.00020619,2]
[386552820,1758384632528,-500.0,0.00020619,2]
[386552822,1758384632538,-500.0,0.00020619,2]
[386552824,1758384632548,-500.0,0.00020619,2]
[386552826,1758384632557,-500.0,0.00020619,2]
[386552828,1758384632567,-500.0,0.00020619,2]
[386552830,1758384632576,-500.0,0.00020619,2]
[386552832,1758384632586,-500.0,0.00020619,2]
[386552833,1758384632595,-500.0,0.00020619,2]
[386552834,1758384632605,-500.0,0.00020619,2]
[386552835,1758384632615,-500.0,0.00020619,2]
[386552837,1758384632624,-500.0,0.00020619,2]
[386552838,1758384632634,-500.0,0.00020619,2]
[386552839,1758384632643,-500.0,0.00020619,2]
[386552840,1758384632653,-500.0,0.00020619,2]
[386552841,1758384632662,-500.0,0.00020619,2]
[386552842,1758384632672,-500.0,0.00020619,2]
[386552844,1758384632681,-500.0,0.00020619,2]
[386552846,1758384632691,-500.0,0.00020619,2]
[386552848,1758384632700,-500.0,0.00020619,2]
[386552850,1758384632710,-500.0,0.00020619,2]
[386552852,1758384632719,-506.35518148,0.00020619,2]
[386552854,1758384632728,-500.0,0.00020619,2]
[386552856,1758384632738,-500.0,0.00020619,2]
[386552857,1758384632748,-500.0,0.00020619,2]
[386552859,1758384632758,-500.0,0.00020619,2]
[386552861,1758384632768,-500.0,0.00020619,2]
[386552863,1758384632778,-553.15147705,0.00020619,2]
[386552864,1758384632788,-500.0,0.00020619,2]
[386552865,1758384632797,-499.99999999,0.00020619,2]
[386552867,1758384632807,-500.0,0.00020619,2]
[386552869,1758384632818,-500.0,0.00020619,2]
[386552871,1758384632827,-355.46998835,0.00020619,2]
[386552872,1758384632837,-500.0,0.00020619,2]
[386552873,1758384632847,-500.0,0.00020619,2]
[386552875,1758384632856,-500.0,0.00020619,2]
[386552877,1758384632865,-500.0,0.00020619,2]
[386552879,1758384632875,-500.0,0.00020619,2]
[386552881,1758384632884,-500.0,0.00020619,2]
[386552883,1758384632894,-500.0,0.00020619,2]
[386552885,1758384632903,-169.78107033,0.00020619,2]
[386552887,1758384632912,-480.0,0.00020619,2]
[386552889,1758384632921,-483.94560055,0.00020619,2]
[386552891,1758384632931,-500.0,0.00020619,2]
[386552893,1758384632940,-163.87606319,0.00020619,2]
[386552895,1758384632950,-500.0,0.00020619,2]
[386552897,1758384632960,-500.0,0.00020619,2]
[386552899,1758384632969,-500.0,0.00020619,2]
[386552900,1758384632978,-500.0,0.00020619,2]
[386552902,1758384632987,-500.0,0.00020619,2]
[386552904,1758384632997,-500.0,0.00020619,2]
[386552907,1758384633006,-500.0,0.00020619,2]
[386552908,1758384633016,-500.0,0.00020619,2]
[386552911,1758384633026,-500.0,0.00020619,2]
[386552912,1758384633035,-500.0,0.00020619,2]
[386552914,1758384633045,-500.0,0.00020619,2]
[386552917,1758384633055,-500.0,0.00020619,2]
[386552919,1758384633065,-500.0,0.00020619,2]
[386552920,1758384633074,-500.0,0.00020619,2]
[386552923,1758384633084,-500.0,0.00020619,2]
[386552924,1758384633093,-500.0,0.00020619,2]
[386552926,1758384633103,-500.0,0.00020619,2]
[386552928,1758384633113,-500.0,0.00020619,2]
[386552930,1758384633123,-500.0,0.00020619,2]
[386552932,1758384633133,-500.0,0.00020619,2]
[386552934,1758384633143,-500.0,0.00020619,2]
[386552936,1758384633152,-500.0,0.00020619,2]
[386552938,1758384633165,-500.0,0.00020619,2]
[386552939,1758384633175,-228.86958237,0.00020619,2]
[386552940,1758384633185,-500.0,0.00020619,2]
[386552941,1758384633195,-500.0,0.00020619,2]
[386552942,1758384633207,-500.0,0.00020619,2]
[386552943,1758384633216,-500.0,0.00020619,2]
[386552944,1758384633226,-500.0,0.00020619,2]
[386552945,1758384633335,-500.0,0.00020619,2]
[386552946,1758384633345,-500.0,0.00020619,2]
[386552947,1758384633355,-500.0,0.00020619,2]
[386552948,1758384633365,-500.0,0.00020619,2]
[386552949,1758384633375,-500.0,0.00020619,2]
[386552950,1758384633385,-500.0,0.00020619,2]
[386552951,1758384633395,-500.0,0.00020619,2]
[386552952,1758384633405,-500.0,0.00020619,2]
[386552953,1758384633415,-500.0,0.00020619,2]
[386552954,1758384633425,-500.0,0.00020619,2]
[386552955,1758384633435,-500.0,0.00020619,2]
[386552956,1758384633446,-500.0,0.00020619,2]
[386552957,1758384633456,-500.0,0.00020619,2]
[386552958,1758384633466,-500.0,0.00020619,2]
[386552959,1758384633477,-500.0,0.00020619,2]
[386552960,1758384633486,-500.0,0.00020619,2]
[386552961,1758384633497,-500.0,0.00020619,2]
[386552962,1758384633506,-500.0,0.00020619,2]
[386552963,1758384633515,-500.0,0.00020619,2]
[386552964,1758384633526,-10410.78685179,0.0002062,2]
[386552965,1758384633536,-6491.2833529,0.0002062,2]
[386552966,1758384633547,-717.73777935,0.00020624,2]
[386552967,1758384633557,-480.0,0.00020625,2]
[386552968,1758384633567,-160.0,0.00020628,2]
[386552969,1758384633577,-500.0,0.00020628,2]
[386552970,1758384633587,-500.0,0.00020628,2]
[386552971,1758384633597,-268.8770511,0.00020628,2]
[386552972,1758384633607,-3031.8258807,0.00020632,2]
[386552973,1758384633617,-151.0,0.000207,3]
[386552974,1758384633628,-500.0,0.000207,2]
[386552975,1758384633638,-803.73,0.00020705,10]
[386552976,1758384633648,-480.0,0.00020715,2]
[386552977,1758384633657,-1819.39,0.00020715,2]
[386552978,1758384633667,-480.0,0.00020715,2]
[386552979,1758384633677,-480.0,0.00020715,2]
[386552980,1758384633687,-480.0,0.00020715,2]
[386552981,1758384633698,-488.04220272,0.00020715,2]
[386552982,1758384633708,-1326.69,0.00020715,2]
[386552983,1758384633719,-1232.84,0.00020715,3]
[386552984,1758384633729,-855.15,0.00020715,3]
[386552985,1758384633739,-1502.97,0.00020715,2]
[386552986,1758384633750,-427.57,0.00020715,3]
[386552987,1758384633760,-480.81,0.00020715,2]
[386552988,1758384633770,-480.0,0.00020715,2]
[386552989,1758384633780,-480.0,0.00020715,2]
[386552990,1758384633791,-480.0,0.00020715,2]
[386552991,1758384633801,-163.39,0.00020715,3]
[386552992,1758384633811,-490.2,0.00020715,3]
[386552993,1758384633820,-1853.72,0.00020715,2]
[386552994,1758384633830,-668.82,0.00020715,2]
[386552995,1758384633840,-3013.92,0.00020715,2]
[386552996,1758384633849,-480.0,0.00020715,2]
[386552997,1758384633858,-693.51,0.00020715,2]
[386552998,1758384633868,-480.0,0.00020715,2]
[386552999,1758384633878,-994.16,0.00020715,2]
[386553000,1758384633888,-480.0,0.00020715,2]
[386553001,1758384633898,-480.0,0.00020719,2]
[386553002,1758384633908,-495.11582446,0.00020719,2]
[386553003,1758384633918,-480.0,0.00020719,2]
[386553004,1758384633928,-480.50299645,0.00020719,2]
[386553005,1758384633938,-480.0,0.00020719,2]
[386553006,1758384633948,-480.0,0.00020719,2]
[386553007,1758384633958,-480.0,0.00020719,2]
[386553008,1758384633968,-480.0,0.00020719,2]
[386553009,1758384633978,-480.0,0.00020719,2]
[386553010,1758384633988,-480.0,0.00020719,2]
[386553011,1758384633998,-482.7268594,0.00020719,2]
[386553012,1758384634008,-485.0669406,0.00020719,2]
[386553013,1758384634018,-480.0,0.00020719,2]
[386553014,1758384634029,-935.26,0.00020719,2]
[386553015,1758384634038,-480.0,0.00020719,2]
[386553016,1758384634048,-484.87668878,0.00020719,2]
[386553017,1758384634059,-480.0,0.00020719,2]
[386553018,1758384634068,-480.0,0.00020719,2]
[386553019,1758384634078,-665.78,0.00020719,2]
[386553020,1758384634088,-480.0,0.00020719,2]
[386553021,1758384634097,-1535.02,0.00020719,2]
[386553022,1758384634107,-480.0,0.00020719,2]
[386553023,1758384634117,-480.0,0.00020719,2]
[386553024,1758384634126,-521.53,0.00020719,2]
[386553025,1758384634136,-167.50463673,0.00020719,2]
[386553026,1758384634145,-480.0,0.00020719,2]
[386553027,1758384634154,-480.0,0.00020719,2]
[386553028,1758384634166,-7535.13419145,0.0002072,2]
[386553029,1758384634176,-480.0,0.00020724,2]
[386553030,1758384634186,-480.0,0.00020724,2]
[386553031,1758384634196,-480.0,0.00020724,2]
[386553032,1758384634207,-480.0,0.00020724,2]
[386553033,1758384634217,-490.76696333,0.00020724,2]
[386553034,1758384634226,-1007.4,0.00020724,2]
[386553035,1758384634236,-480.0,0.00020724,2]
[386553036,1758384634249,-480.0,0.00020724,2]
[386553037,1758384634259,-480.0,0.00020724,2]
[386553038,1758384634270,-480.0,0.00020724,2]
[386553039,1758384634279,-499.37031266,0.00020724,2]
[386553040,1758384634290,-480.0,0.00020724,2]
[386553041,1758384634300,-480.0,0.00020724,2]
[386553042,1758384634310,-480.0,0.00020724,2]
[386553043,1758384634319,-480.0,0.00020724,2]
[386553044,1758384634330,-480.0,0.00020724,2]
[386553045,1758384634339,-480.0,0.00020724,2]
[386553046,1758384634349,-490.30707561,0.00020724,2]
[386553047,1758384634359,-480.0,0.00020724,2]
[386553048,1758384634368,-480.0,0.00020724,2]
[386553049,1758384634378,-480.0,0.00020724,2]
[386553050,1758384634388,-480.0,0.00020724,2]
[386553051,1758384634398,-480.0,0.00020724,2]
[386553052,1758384634407,-480.0,0.00020724,2]
[386553053,1758384634417,-480.0,0.00020724,2]
[386553054,1758384634427,-480.0,0.00020724,2]
[386553055,1758384634436,-480.0,0.00020724,2]
[386553056,1758384634447,-480.0,0.00020724,2]
[386553057,1758384634456,-480.0,0.00020724,2]
[386553058,1758384634465,-480.0,0.00020724,2]
[386553059,1758384634475,-400.92880368,0.00020724,2]
[386553060,1758384634490,-79.07119632,0.00020724,2]
[386553061,1758384634499,-480.0,0.00020724,2]
[386553062,1758384634509,-480.0,0.00020724,2]
[386553063,1758384634519,-480.0,0.00020724,2]
[386553064,1758384634528,-480.0,0.00020724,2]
[386553065,1758384634538,-480.0,0.00020724,2]
[386553066,1758384634547,-480.0,0.00020724,2]
[386553067,1758384634557,-480.0,0.00020724,2]
[386553068,1758384634566,-480.0,0.00020724,2]
[386553069,1758384634576,-480.0,0.00020724,2]
[386553070,1758384634585,-480.0,0.00020724,2]
[386553071,1758384634595,-195.4538546,0.00020724,2]
[386553072,1758384634604,-480.0,0.00020724,2]
[386553073,1758384634614,-480.0,0.00020724,2]
[386553074,1758384634624,-480.0,0.00020724,2]
[386553075,1758384634633,-480.0,0.00020724,2]
[386553076,1758384634643,-480.0,0.00020724,2]
[386553077,1758384634652,-480.0,0.00020724,2]
[386553078,1758384634662,-480.0,0.00020724,2]
[386553079,1758384634672,-500.0,0.00020724,2]
[386553080,1758384634681,-480.0,0.00020724,2]
[386553081,1758384634691,-481.5893848,0.00020724,2]
[386553082,1758384634701,-480.0,0.00020724,2]
[386553083,1758384634713,-480.0,0.00020724,2]
[386553084,1758384634723,-480.0,0.00020724,2]
[386553085,1758384634732,-480.0,0.00020724,2]
[386553086,1758384634742,-480.0,0.00020724,2]
[386553087,1758384634752,-480.0,0.00020724,2]
[386553088,1758384634761,-480.0,0.00020724,2]
[386553089,1758384634771,-480.0,0.00020724,2]
[386553090,1758384634781,-430.64252563,0.00020724,2]
[386553091,1758384634791,-480.0,0.00020724,2]
[386553092,1758384634801,-480.0,0.00020724,2]
[386553093,1758384634811,-480.0,0.00020724,2]
[386553094,1758384634820,-480.0,0.00020724,2]
[386553095,1758384634830,-480.0,0.00020724,2]
[386553096,1758384634840,-480.0,0.00020724,2]
[386553097,1758384634849,-480.0,0.00020724,2]
[386553098,1758384634859,-520.0,0.00020725,3]
[386553099,1758384634868,-480.0,0.00020725,2]
[386553100,1758384634878,-480.0,0.00020725,2]
[386553101,1758384634888,-482.99218539,0.00020725,2]
[386553102,1758384634898,-480.0,0.00020725,2]
[386553103,1758384634909,-480.0,0.00020725,2]
[386553104,1758384634919,-480.0,0.00020725,2]
[386553105,1758384634928,-489.24679429,0.00020725,2]
[386553106,1758384634938,-483.87599363,0.00020725,2]
[386553107,1758384634948,-489.24744141,0.00020725,2]
[386553108,1758384634958,-485.92427923,0.00020725,2]
[386553109,1758384634968,-480.0,0.00020725,2]
[386553110,1758384634978,-545.99839977,0.00020725,2]
[386553111,1758384634988,-512.28909787,0.00020725,2]
[386553112,1758384634998,-480.0,0.00020725,2]
[386553113,1758384635008,-480.0,0.00020725,2]
[386553114,1758384635017,-505.94,0.00020725,2]
[386553115,1758384635027,-480.0,0.00020725,2]
[386553116,1758384635037,-480.0,0.00020725,2]
[386553117,1758384635046,-480.0,0.00020725,2]
[386553118,1758384635056,-480.0,0.00020725,2]
[386553119,1758384635065,-480.0,0.00020725,2]
[386553120,1758384635075,-480.0,0.00020725,2]
[386553121,1758384635084,-480.0,0.00020725,2]
[386553122,1758384635093,-480.0,0.00020725,2]
[386553123,1758384635103,-480.0,0.00020725,2]
[386553124,1758384635113,-480.0,0.00020725,2]
[386553125,1758384635123,-480.0,0.00020725,2]
[386553126,1758384635132,-480.0,0.00020725,2]
[386553127,1758384635142,-480.0,0.00020725,2]
[386553128,1758384635151,-480.0,0.00020725,2]
[386553129,1758384635162,-1301.03,0.00020725,2]
[386553130,1758384635173,-480.0,0.00020725,2]
[386553131,1758384635183,-480.0,0.00020725,2]
[386553132,1758384635277,-480.0,0.00020725,2]
[386553133,1758384635288,-480.0,0.00020725,2]
[386553134,1758384635297,-480.0,0.00020725,2]
[386553135,1758384635307,-480.0,0.00020725,2]
[386553136,1758384635316,-480.0,0.00020725,2]
[386553137,1758384635326,-480.0,0.00020725,2]
[386553138,1758384635335,-480.0,0.00020725,2]
[386553139,1758384635344,-480.0,0.00020725,2]
[386553140,1758384635354,-565.82,0.00020725,2]
[386553141,1758384635363,-526.14,0.00020725,2]
[386553142,1758384635372,-480.0,0.00020725,2]
[386553143,1758384635382,-480.0,0.00020725,2]
[386553144,1758384635391,-480.0,0.00020725,2]
[386553145,1758384635400,-480.0,0.00020725,2]
[386553146,1758384635410,-486.1112003,0.00020725,2]
[386553147,1758384635419,-480.0,0.00020725,2]
[386553148,1758384635429,-480.0,0.00020725,2]
[386553149,1758384635439,-480.0,0.00020725,2]
[386553150,1758384635449,-480.0,0.00020725,2]
[386553151,1758384635458,-480.0,0.00020725,2]
[386553152,1758384635468,-490.19765211,0.00020725,2]
[386553153,1758384635478,-480.0,0.00020725,2]
[386553154,1758384635488,-480.0,0.00020725,2]
[386553155,1758384635497,-480.0,0.00020725,2]
[386553156,1758384635507,-480.0,0.00020725,2]
[386553157,1758384635517,-480.0,0.00020725,2]
[386553158,1758384635527,-480.0,0.00020725,2]
[386553159,1758384635536,-480.0,0.00020725,2]
[386553160,1758384635546,-480.0,0.00020725,2]
[386553161,1758384635555,-480.0,0.00020725,2]
[386553162,1758384635565,-480.0,0.00020725,2]
[386553163,1758384635575,-488.90367269,0.00020725,2]
[386553164,1758384635586,-480.0,0.00020726,2]
[386553165,1758384635596,-480.0,0.00020726,2]
[386553166,1758384635605,-439.4470759,0.00020726,2]
[386553167,1758384635615,-449.91638099,0.00020726,2]
[386553168,1758384635625,-480.0,0.00020726,2]
[386553169,1758384635634,-480.0,0.00020726,2]
[386553170,1758384635644,-480.0,0.00020726,2]
[386553171,1758384635654,-480.0,0.00020726,2]
[386553172,1758384635663,-480.0,0.00020726,2]
[386553173,1758384635673,-480.0,0.00020726,2]
[386553174,1758384635683,-378.65,0.00020726,2]
[386553175,1758384635692,-688.84,0.00020726,2]
[386553176,1758384635701,-480.0,0.00020726,2]
[386553177,1758384635711,-157.03,0.00020726,2]
[386553178,1758384635721,-480.0,0.00020726,2]
[386553179,1758384635730,-480.0,0.00020726,2]
[386553180,1758384635739,-706.51,0.00020726,2]
[386553181,1758384635749,-480.0,0.00020726,2]
[386553182,1758384635759,-480.0,0.00020726,2]
[386553183,1758384635768,-428.59222515,0.00020726,2]
[386553267,1758384640362,-218.70352271,0.00020618,2]
[386553269,1758384640372,-460.15681717,0.00020618,2]
[386553271,1758384640382,-1748.35817446,0.00020619,2]
[386553274,1758384640398,-110.30182554,0.00020619,2]
[386553276,1758384640407,-500.0,0.00020619,2]
[386553277,1758384640417,-480.0,0.00020625,2]
[386553278,1758384640426,-1255.8,0.00020715,2]
[386553279,1758384640436,-669.77,0.00020716,10]
[386553281,1758384640447,-480.0,0.00020719,2]
[386553283,1758384640456,-480.0,0.00020725,2]
[386553284,1758384640466,-480.0,0.00020725,2]
[386553285,1758384640477,-480.0,0.00020725,2]
[386553286,1758384640487,-51.40777485,0.00020726,2]
[386553288,1758384640498,-151.0,0.00020726,2]
[386553290,1758384640507,-480.0,0.00020726,2]
[386553292,1758384640517,-151.0,0.00020726,2]
[386553293,1758384640526,-151.0,0.00020726,2]
[386553295,1758384640536,-151.0,0.00020726,2]
[386553296,1758384640546,-480.0,0.00020726,2]
[386553297,1758384640555,-607.62,0.00020726,2]
[386553298,1758384640565,-151.0,0.00020726,2]
[386553299,1758384640574,-151.0,0.00020726,2]
[386553300,1758384640584,-151.0,0.00020726,2]
[386553301,1758384640593,-151.0,0.00020726,2]
[386553302,1758384640603,-151.0,0.00020726,2]
[386553303,1758384640613,-335.00843238,0.00020726,2]
[386553304,1758384640622,-112.4939243,0.00020726,2]
[386553305,1758384640638,-367.5060757,0.00020726,2]
[386553306,1758384640648,-1705.73,0.00020726,2]
[386553307,1758384640657,-481.29508615,0.00020726,2]
[386553308,1758384640667,-480.0,0.00020726,2]
[386553309,1758384640676,-480.0,0.00020726,2]
[386553310,1758384640686,-1265.1,0.00020726,2]
[386553311,1758384640696,-151.0,0.00020726,2]
[386553312,1758384640706,-151.0,0.00020726,2]
[386553313,1758384640716,-480.0,0.00020726,2]
[386553314,1758384640727,-193.621487,0.00020726,2]
[386553315,1758384640737,-480.0,0.00020726,2]
[386553316,1758384640747,-193.621487,0.00020726,2]
[386553317,1758384640756,-193.621487,0.00020726,2]
[386553318,1758384640766,-193.621487,0.00020726,2]
[386553319,1758384640776,-482.56420786,0.00020726,2]
[386553320,1758384640787,-657.025731,0.00020726,2]
[386553321,1758384640796,-151.0,0.00020726,2]
[386553322,1758384640806,-657.025731,0.00020726,2]